bitfinex/quotes_SOLUSD_20251007
["timestamp","ask_amount","ask_price","bid_price","bid_amount"]
[1759855035335,15.70290807,224.32,224.25,0.71]
[1759855035836,15.70290807,224.32,224.26,32.78]
[1759855036843,0.1,224.32,224.27,0.71]
[1759855037442,0.1,224.32,224.29,20.8]
[1759855037644,0.1,224.32,224.3,5.16831475]
[1759855037843,0.1,224.32,224.31,32.78]
[1759855038144,0.1,224.32,224.31,33.49]
[1759855039649,0.1,224.32,224.31,5.168116]
[1759855039820,0.1,224.32,224.31,0.71]
[1759855040140,0.1,224.32,224.31,33.49]
[1759855040343,0.1,224.32,224.29,0.71]
[1759855040545,0.1,224.32,224.3,32.78]
[1759855040741,0.1,224.32,224.3,33.49]
[1759855041624,0.1,224.32,224.3,37.94829565]
[1759855041820,0.1,224.32,224.3,37.23829565]
[1759855042043,0.1,224.32,224.31,0.71]
[1759855043048,0.1,224.32,224.31,32.76]
[1759855044138,0.1,224.32,224.31,33.47]
[1759855044549,0.1,224.32,224.31,37.928116]
[1759855044730,0.66,224.42,224.31,49.073406]
[1759855044935,0.66,224.42,224.32,0.71]
[1759855045839,4.4561294,224.41,224.32,0.71]
[1759855046145,0.66,224.4,224.32,0.71]
[1759855046349,0.66,224.4,224.33,32.76]
[1759855046540,0.72,224.51,224.34,24.96647521]
[1759855046757,4.55505158,224.47,224.35,34.74]
[1759855046945,4.55505158,224.47,224.36,0.69]
[1759855047244,4.55505158,224.47,224.37,32.76]
[1759855047553,0.1,224.47,224.4,10.87647521]
[1759855047757,0.1,224.47,224.42,4.45593084]
[1759855047954,0.1,224.47,224.41,0.69]
[1759855048156,0.1,224.47,224.42,32.76]
[1759855048346,0.1,224.47,224.43,0.69]
[1759855048651,4.55496132,224.47,224.43,0.69]
[1759855048829,4.55496132,224.47,224.4,0.69]
[1759855049032,5.27496132,224.47,224.37,0.69]
[1759855049246,16.41230706,224.47,224.37,0.69]
[1759855049468,16.41230706,224.47,224.38,32.76]
[1759855049842,16.41230706,224.47,224.38,37.216716]
[1759855051359,16.41230706,224.47,224.38,37.906716]
[1759855051559,16.41230706,224.47,224.38,33.45]
[1759855051735,16.41230706,224.47,224.39,32.74]
[1759855053638,0.1,224.47,224.4,0.69]
[1759855054044,4.55494017,224.47,224.4,0.69]
[1759855054254,4.55494017,224.47,224.41,32.74]
[1759855054644,4.55494017,224.47,224.42,0.69]
[1759855054958,0.1,224.47,224.42,0.69]
[1759855055337,0.1,224.47,224.43,0.69]
[1759855055766,0.1,224.47,224.42,4.45593084]
[1759855055953,0.1,224.47,224.44,0.69]
[1759855056161,0.1,224.47,224.45,33.43]
[1759855057142,0.1,224.47,224.46,0.69]
[1759855058041,0.1,224.47,224.45,32.74]
[1759855058246,0.1,224.47,224.46,0.69]
[1759855058664,0.1,224.47,224.45,32.74]
[1759855058976,0.1,224.47,224.46,0.71]
[1759855059342,0.1,224.47,224.45,37.1953148]
[1759855059550,0.1,224.47,224.46,32.72]
[1759855062168,0.1,224.47,224.43,5.16572995]
[1759855062364,0.1,224.47,224.44,33.43]
[1759855063975,0.1,224.47,224.44,32.72]
[1759855064276,0.1,224.47,224.45,0.71]
[1759855064476,0.1,224.47,224.44,32.72]
[1759855064679,0.1,224.47,224.44,33.43]
[1759855066074,0.1,224.47,224.44,37.88552655]
[1759855066558,0.1,224.47,224.44,33.43]
[1759855067272,0.1,224.47,224.45,0.71]
[1759855067579,0.1,224.47,224.44,32.72]
[1759855067580,0.1,224.47,224.44,37.1755134]
[1759855067752,0.1,224.47,224.44,33.43]
[1759855068277,0.1,224.47,224.45,0.71]
[1759855068476,0.1,224.47,224.46,0.71]
[1759855068865,0.1,224.47,224.44,33.43]
[1759855069177,5.27500876,224.47,224.45,32.7]
[1759855069370,5.27500876,224.47,224.46,32.7]
[1759855070074,8.32892774,224.47,224.35,35.45]
[1759855070261,3.05391898,224.42,224.36,32.7]
[1759855070681,0.72,224.43,224.36,32.7]
[1759855071180,4.45593084,224.42,224.36,32.7]
[1759855071578,0.72,224.46,224.37,0.71]
[1759855071786,4.45515025,224.46,224.37,0.71]
[1759855072485,0.1,224.47,224.37,0.71]
[1759855072486,0.1,224.47,224.38,10.87647521]
[1759855072680,0.1,224.47,224.39,0.71]
[1759855072881,5.27495645,224.47,224.39,0.71]
[1759855073067,3.05391898,224.46,224.4,32.7]
[1759855073376,3.05391898,224.45,224.4,32.7]
[1759855073579,3.05391898,224.42,224.35,34.74]
[1759855073782,0.72,224.42,224.36,32.7]
[1759855073964,3.77391898,224.42,224.36,32.7]
[1759855074167,0.72,224.42,224.36,32.7]
[1759855074774,0.72,224.45,224.36,32.7]
[1759855075084,4.45593084,224.42,224.36,32.7]
[1759855075284,4.45593084,224.42,224.36,37.15710628]
[1759855075583,4.45557562,224.44,224.37,0.71]
[1759855075788,7.5094946,224.44,224.37,0.71]
[1759855076190,4.45557562,224.44,224.37,0.71]
[1759855077063,4.45557562,224.44,224.36,32.7]
[1759855077064,8.1894946,224.44,224.36,32.7]
[1759855077265,3.05391898,224.43,224.35,39.89731046]
[1759855077485,3.05391898,224.41,224.36,32.7]
[1759855077800,4.5549665,224.47,224.37,0.7]
[1759855078090,4.5549665,224.47,224.38,32.7]
[1759855078288,0.1,224.47,224.4,10.87647521]
[1759855078489,0.1,224.47,224.41,0.7]
[1759855078691,0.1,224.47,224.42,32.7]
[1759855078892,0.1,224.47,224.43,0.7]
[1759855079193,0.1,224.47,224.44,0.7]
[1759855080670,0.1,224.47,224.42,32.7]
[1759855080869,0.1,224.47,224.44,0.7]
[1759855081082,0.1,224.47,224.42,37.15588082]
[1759855081083,0.1,224.47,224.45,0.7]
[1759855081291,0.1,224.47,224.46,32.7]
[1759855081587,0.1,224.47,224.46,33.4]
[1759855081817,0.1,224.47,224.46,32.7]
[1759855082184,0.1,224.47,224.46,31.7271863]
[1759855082492,0.1,224.47,224.46,32.4271863]
[1759855083674,0.1,224.47,224.46,31.7271863]
[1759855084383,4.55493829,224.47,224.46,32.7]
[1759855087604,0.1,224.47,224.46,37.85513677]
[1759855088394,0.1,224.47,224.46,5.15513677]
[1759855088577,0.1,224.47,224.46,37.85513677]
[1759855088978,0.1,224.47,224.46,32.7]
[1759855089205,0.1,224.47,224.46,37.85513677]
[1759855089508,0.1,224.47,224.46,33.4]
[1759855089796,0.1,224.47,224.46,37.85513677]
[1759855090401,0.1,224.47,224.46,33.4]
[1759855090600,0.1,224.47,224.46,37.83513677]
[1759855091882,0.1,224.47,224.46,33.38]
[1759855094386,0.1,224.47,224.46,37.83513677]
[1759855096497,0.1,224.47,224.46,37.13513677]
[1759855096710,0.1,224.47,224.46,37.83513677]
[1759855097085,0.1,224.47,224.46,37.13513677]
[1759855097591,0.1,224.47,224.46,37.83513677]
[1759855101381,0.1,224.47,224.46,48.71161198]
[1759855102309,0.1,224.55,224.5,31.67647521]
[1759855102492,0.1,224.55,224.51,37.13414458]
[1759855102697,0.1,224.55,224.51,37.83414458]
[1759855102995,0.1,224.55,224.52,0.7]
[1759855103306,0.1,224.55,224.53,33.38]
[1759855103504,0.1,224.55,224.54,32.68]
[1759855106311,0.78,224.55,224.54,32.68]
[1759855106829,0.78,224.55,224.5,25.25434298]
[1759855107001,0.1,224.55,224.51,32.68]
[1759855107209,0.1,224.55,224.51,33.34]
[1759855107796,0.1,224.55,224.51,32.68]
[1759855107991,0.1,224.55,224.52,0.66]
[1759855108217,5.1617609,224.64,224.53,43.55647521]
[1759855108418,5.1617609,224.64,224.54,0.66]
[1759855108712,5.16166257,224.64,224.56,4.45315283]
[1759855109018,5.16166257,224.64,224.57,32.68]
[1759855109614,0.71,224.64,224.57,32.68]
[1759855110798,5.16157721,224.64,224.57,37.13282795]
[1759855111415,4.45094775,224.68,224.57,48.26521428]
[1759855111607,0.71,224.67,224.58,0.66]
[1759855111999,1.95452873,224.66,224.59,32.66]
[1759855112299,0.71,224.65,224.59,32.66]
[1759855112694,4.45156695,224.64,224.6,32.66]
[1759855113017,5.16156695,224.64,224.6,32.66]
[1759855113602,4.45156695,224.64,224.6,32.66]
[1759855113998,4.45136879,224.65,224.6,32.66]
[1759855114204,0.71,224.64,224.55,0.66]
[1759855114411,0.71,224.64,224.51,28.16927098]
[1759855114412,0.71,224.64,224.56,32.66]
[1759855114716,15.57979077,224.65,224.56,32.66]
[1759855114717,1.95452873,224.62,224.56,32.66]
[1759855114921,1.95452873,224.6,224.57,32.66]
[1759855115120,0.71,224.59,224.58,32.66]
[1759855115298,15.57979077,224.65,224.58,32.66]
[1759855115500,0.71,224.59,224.51,0.66]
[1759855115700,1.95452873,224.58,224.52,32.66]
[1759855115920,4.45315283,224.56,224.53,32.66]
[1759855116227,0.71,224.56,224.53,32.66]
[1759855117528,0.71,224.58,224.53,32.66]
[1759855117727,0.71,224.57,224.53,32.66]
[1759855117927,5.16333014,224.56,224.53,32.66]
[1759855118099,5.16333014,224.56,224.47,0.66]
[1759855118304,0.71,224.55,224.47,0.66]
[1759855118611,0.71,224.55,224.48,32.66]
[1759855119127,6.40785887,224.56,224.48,32.66]
[1759855119332,0.71,224.54,224.48,32.66]
[1759855119715,17.54074095,224.56,224.48,33.32]
[1759855119913,15.58621222,224.56,224.48,37.77462537]
[1759855120424,1.95452873,224.53,224.48,32.66]
[1759855120625,0.71,224.52,224.48,32.66]
[1759855120818,1.95452873,224.51,224.48,32.66]
[1759855121024,0.71,224.51,224.48,32.66]
[1759855121222,4.45304425,224.57,224.48,32.66]
[1759855121223,0.71,224.53,224.48,32.66]
[1759855121826,0.71,224.52,224.48,32.66]
[1759855122127,0.71,224.51,224.48,32.66]
[1759855122829,0.71,224.5,224.48,32.66]
[1759855124033,0.71,224.52,224.48,32.66]
[1759855124245,0.71,224.51,224.48,32.66]
[1759855124412,20.8,224.55,224.48,32.66]
[1759855124610,1.95452873,224.52,224.48,32.66]
[1759855124816,1.95452873,224.53,224.48,32.66]
[1759855125133,2.66452873,224.53,224.48,32.66]
[1759855125340,2.66452873,224.56,224.49,0.66]
[1759855125521,3.32057808,224.55,224.49,0.66]
[1759855126022,1.95452873,224.57,224.49,0.66]
[1759855126222,4.45335114,224.55,224.49,0.66]
[1759855128136,4.45315283,224.56,224.49,0.66]
[1759855128516,6.40768156,224.56,224.49,0.66]
[1759855128711,2.66452873,224.55,224.48,32.66]
[1759855129640,0.71,224.55,224.48,32.66]
[1759855130017,4.45354947,224.54,224.48,32.66]
[1759855130219,15.58742316,224.54,224.45,4.45524244]
[1759855130433,2.66452873,224.53,224.46,32.66]
[1759855130729,0.71,224.53,224.47,0.66]
[1759855131219,4.45354947,224.54,224.47,0.66]
[1759855131617,15.58742316,224.54,224.47,0.66]
[1759855131849,4.45255799,224.59,224.47,5.11492924]
[1759855132138,6.40708672,224.59,224.48,0.66]
[1759855132334,3.32164034,224.58,224.48,0.66]
[1759855133521,0.71,224.57,224.48,0.66]
[1759855133716,5.16310687,224.57,224.49,4.4545414]
[1759855133928,4.45310687,224.57,224.5,0.66]
[1759855134127,4.45310687,224.57,224.51,32.66]
[1759855134441,5.16274419,224.59,224.52,0.66]
[1759855134639,4.45274419,224.59,224.52,0.66]
[1759855135042,4.45237008,224.6,224.52,0.66]
[1759855135222,11.12989599,224.63,224.52,0.66]
[1759855135422,7.77326481,224.62,224.52,0.66]
[1759855135622,4.45196331,224.62,224.52,0.66]
[1759855135839,4.45196331,224.62,224.53,4.45374782]
[1759855136022,4.45196331,224.62,224.54,32.66]
[1759855136023,1.95452873,224.58,224.54,32.66]
[1759855136344,0.71,224.57,224.54,32.66]
[1759855137055,4.45275625,224.58,224.54,32.66]
[1759855137220,5.12275625,224.58,224.54,32.66]
[1759855138135,4.45275625,224.58,224.55,0.69]
[1759855138339,0.67,224.66,224.55,0.69]
[1759855138531,7.43903232,224.71,224.57,20.8]
[1759855138848,7.43903232,224.71,224.58,0.69]
[1759855138849,3.32057672,224.7,224.58,0.69]
[1759855139154,3.32057672,224.7,224.6,4.45235975]
[1759855139452,0.67,224.69,224.61,0.69]
[1759855141170,16.24564651,224.71,224.61,5.14210792]
[1759855141329,16.24564651,224.71,224.62,0.69]
[1759855141884,18.20017524,224.71,224.62,0.69]
[1759855142156,16.24564651,224.71,224.57,20.8]
[1759855142355,1.95452873,224.68,224.58,33.33]
[1759855142523,0.67,224.67,224.58,33.33]
[1759855142960,0.67,224.66,224.58,33.33]
[1759855143142,4.45136879,224.65,224.58,33.33]
[1759855143649,4.45136879,224.65,224.59,32.64]
[1759855143845,11.79825491,224.66,224.59,32.64]
[1759855143846,0.67,224.66,224.59,32.64]
[1759855144026,5.12122243,224.66,224.59,32.64]
[1759855145056,11.12645221,224.69,224.6,0.69]
[1759855145257,11.12526556,224.72,224.61,4.45216152]
[1759855145559,0.67,224.71,224.62,0.69]
[1759855146536,14.01075037,224.74,224.62,5.14194465]
[1759855146748,3.98326011,224.73,224.63,0.69]
[1759855147052,0.67,224.73,224.63,0.69]
[1759855148450,5.11991237,224.73,224.64,4.45156695]
[1759855148643,0.67,224.72,224.65,32.64]
[1759855149041,0.67,224.71,224.65,32.64]
[1759855149235,1.95452873,224.69,224.66,32.64]
[1759855149437,0.67,224.68,224.67,32.64]
[1759855149631,15.57437283,224.73,224.67,32.64]
[1759855149632,0.67,224.73,224.67,32.64]
[1759855149956,0.67,224.72,224.67,32.64]
[1759855150334,16.24563081,224.71,224.67,32.64]
[1759855150534,0.67,224.7,224.67,32.64]
[1759855150950,1.95452873,224.68,224.59,0.69]
[1759855151136,1.95452873,224.68,224.6,32.64]
[1759855151334,1.95452873,224.68,224.6,33.33]
[1759855151533,2.62452873,224.69,224.61,0.69]
[1759855151748,0.67,224.69,224.61,0.69]
[1759855152149,18.20015954,224.71,224.61,0.69]
[1759855152341,18.20015954,224.71,224.61,5.14205199]
[1759855152544,18.20015954,224.71,224.62,0.69]
[1759855152746,7.07470896,224.71,224.62,0.69]
[1759855152937,5.12018023,224.71,224.62,0.69]
[1759855153143,4.45018023,224.71,224.62,0.69]
[1759855154858,4.45018023,224.71,224.63,4.45176512]
[1759855155030,4.45018023,224.71,224.63,5.14176512]
[1759855155237,0.67,224.7,224.63,5.14176512]
[1759855156256,5.12047804,224.7,224.63,5.14176512]
[1759855156460,4.45047804,224.7,224.62,4.45195858]
[1759855156659,3.04902871,224.68,224.6,0.69]
[1759855156850,0.67,224.69,224.61,32.62]
[1759855157047,3.71902871,224.68,224.61,32.62]
[1759855157449,3.04902871,224.66,224.61,32.62]
[1759855157667,0.67,224.65,224.61,32.62]
[1759855158040,0.67,224.67,224.61,32.62]
[1759855158237,3.71902871,224.66,224.61,32.62]
[1759855158553,0.67,224.65,224.61,32.62]
[1759855158948,36.37632398,224.7,224.61,32.62]
[1759855159160,3.71902871,224.67,224.61,32.62]
[1759855159469,0.67,224.67,224.61,32.62]
[1759855159646,3.71902871,224.67,224.61,32.62]
[1759855159852,4.45117065,224.66,224.61,32.62]
[1759855160058,4.45018023,224.71,224.62,0.69]
[1759855160259,0.67,224.77,224.64,20.8]
[1759855160479,3.04902871,224.76,224.65,0.69]
[1759855161174,0.67,224.76,224.65,0.69]
[1759855161881,4.44958618,224.74,224.65,5.14117152]
[1759855162036,4.44958618,224.74,224.66,0.69]
[1759855162240,0.67,224.75,224.67,32.62]
[1759855162454,0.67,224.74,224.67,32.62]
[1759855162660,3.71902871,224.73,224.67,32.62]
[1759855162865,3.04902871,224.7,224.57,11.13220153]
[1759855163067,3.71902871,224.69,224.6,0.69]
[1759855163437,0.67,224.69,224.6,0.69]
[1759855163645,3.04902871,224.68,224.61,32.62]
[1759855163962,3.04902871,224.67,224.62,32.62]
[1759855164354,4.45077443,224.68,224.62,33.31]
[1759855164755,7.49980314,224.68,224.62,33.31]
[1759855165668,3.04902871,224.67,224.62,33.31]
[1759855165875,4.45117065,224.66,224.62,33.31]
[1759855166373,3.04902871,224.63,224.57,0.69]
[1759855166578,3.04902871,224.62,224.58,32.62]
[1759855166755,0.67,224.65,224.58,32.62]
[1759855167150,3.04902871,224.63,224.58,32.62]
[1759855167365,21.52,224.69,224.59,0.66]
[1759855167757,3.04902871,224.68,224.59,0.66]
[1759855167954,3.04902871,224.66,224.59,0.66]
[1759855168175,3.04902871,224.66,224.55,34.7]
[1759855168176,3.04902871,224.6,224.55,34.7]
[1759855168370,3.04902871,224.6,224.56,32.62]
[1759855168680,8.22000124,224.67,224.56,33.28]
[1759855168879,0.72,224.66,224.57,0.66]
[1759855169048,15.57840387,224.67,224.57,0.66]
[1759855169254,16.29840387,224.67,224.57,0.66]
[1759855169693,3.04902871,224.66,224.57,0.66]
[1759855169976,4.45156695,224.64,224.57,0.66]
[1759855170556,5.17156695,224.64,224.57,0.66]
[1759855174672,5.17156695,224.64,224.56,32.62]
[1759855174673,3.04902871,224.63,224.56,32.62]
[1759855174874,3.76902871,224.62,224.56,32.62]
[1759855175071,0.72,224.62,224.56,32.62]
[1759855175975,0.72,224.61,224.56,32.62]
[1759855176286,0.72,224.6,224.56,32.62]
[1759855176490,5.17235975,224.6,224.56,32.62]
[1759855176693,16.30325912,224.6,224.56,32.62]
[1759855176985,3.04902871,224.58,224.55,34.7]
[1759855177194,0.72,224.57,224.56,32.62]
[1759855177665,3.76902871,224.57,224.56,32.62]
[1759855178365,8.22198324,224.57,224.56,32.62]
[1759855180090,5.17295453,224.57,224.56,32.62]
[1759855180288,8.22198324,224.57,224.56,32.62]
[1759855181290,11.53903495,224.57,224.56,32.62]
[1759855181493,22.67142128,224.57,224.46,0.71]
[1759855181667,22.67142128,224.57,224.42,0.71]
[1759855181668,3.04902871,224.47,224.42,0.71]
[1759855181988,0.65,224.46,224.39,35.41]
[1759855182188,20.8,224.48,224.32,0.2]
[1759855182189,15.59367341,224.45,224.32,0.2]
[1759855182372,3.04902871,224.4,224.35,0.71]
[1759855182572,0.65,224.43,224.36,0.71]
[1759855182767,3.04902871,224.51,224.36,0.71]
[1759855182768,0.65,224.5,224.37,24.64]
[1759855182993,4.45473573,224.49,224.38,0.71]
[1759855183170,7.50376444,224.49,224.38,0.71]
[1759855183670,3.04902871,224.5,224.38,0.71]
[1759855184076,7.50376855,224.48,224.39,4.45652658]
[1759855184272,7.50376855,224.48,224.4,0.71]
[1759855184896,4.45473984,224.48,224.4,0.71]
[1759855185190,4.45473984,224.48,224.4,5.16622932]
[1759855185393,4.45473984,224.48,224.41,0.71]
[1759855186193,7.50376855,224.48,224.42,32.62]
[1759855186495,3.04902871,224.47,224.43,32.62]
[1759855186697,3.69902871,224.47,224.43,32.62]
[1759855186994,3.04902871,224.46,224.43,32.62]
[1759855187201,4.45513677,224.46,224.43,32.62]
[1759855187495,3.04902871,224.45,224.43,32.62]
[1759855187993,0.65,224.44,224.43,32.62]
[1759855188194,15.5929787,224.46,224.43,32.62]
[1759855188409,3.69902871,224.45,224.43,32.62]
[1759855188694,4.45553377,224.44,224.43,32.62]
[1759855189478,4.45522349,224.46,224.43,33.33]
[1759855189689,4.45522349,224.46,224.43,32.62]
[1759855190796,16.24306542,224.46,224.43,32.62]
[1759855191174,15.59306542,224.46,224.43,32.62]
[1759855191990,3.69902871,224.45,224.43,32.62]
[1759855192195,15.59306542,224.46,224.44,32.62]
[1759855192396,4.45522349,224.46,224.45,32.62]
[1759855192695,8.1542522,224.46,224.45,32.62]
[1759855193878,7.5042522,224.46,224.45,32.62]
[1759855194088,4.45522349,224.46,224.45,32.62]
[1759855194294,0.65,224.56,224.45,33.33]
[1759855194497,3.04902871,224.53,224.46,0.71]
[1759855194684,4.45335114,224.55,224.46,0.71]
[1759855194685,15.586729,224.55,224.46,0.71]
[1759855194884,3.04902871,224.53,224.46,5.16510462]
[1759855195192,15.586729,224.55,224.47,0.71]
[1759855195379,18.63575771,224.55,224.47,0.71]
[1759855195580,15.586729,224.55,224.47,0.71]
[1759855195787,18.63575771,224.55,224.47,0.71]
[1759855196184,4.45374782,224.53,224.47,0.71]
[1759855196878,15.58811739,224.53,224.47,0.71]
[1759855198181,11.13436957,224.53,224.47,0.71]
[1759855198688,4.45300923,224.57,224.47,5.16489437]
[1759855198892,4.45300923,224.57,224.48,0.72]
[1759855200073,4.45300923,224.57,224.48,5.174558]
[1759855200293,4.45300923,224.57,224.49,0.72]
[1759855200528,4.45286891,224.58,224.49,0.72]
[1759855200805,7.50189762,224.58,224.49,0.72]
[1759855201001,4.45286891,224.58,224.49,0.72]
[1759855201585,11.13116057,224.6,224.49,0.72]
[1759855201586,18.01914448,224.6,224.51,20.8]
[1759855201791,4.45240157,224.6,224.52,33.32]
[1759855202126,4.45216152,224.61,224.54,4.45354947]
[1759855202399,4.45216152,224.61,224.54,5.17354947]
[1759855202806,4.45216152,224.61,224.54,0.72]
[1759855205076,3.04902871,224.6,224.55,32.6]
[1759855205279,5.11216152,224.61,224.49,0.72]
[1759855205280,3.04902871,224.56,224.49,0.72]
[1759855205505,3.04902871,224.56,224.5,32.6]
[1759855206087,3.04902871,224.53,224.46,0.72]
[1759855206292,3.04902871,224.53,224.47,32.6]
[1759855206608,4.45394619,224.52,224.47,32.6]
[1759855206807,4.45394619,224.52,224.47,33.32]
[1759855207298,3.70902871,224.51,224.44,35.44]
[1759855207606,3.70902871,224.51,224.45,32.6]
[1759855207808,3.04902871,224.5,224.46,32.6]
[1759855208018,0.66,224.49,224.46,32.6]
[1759855208497,15.59158944,224.48,224.44,34.72]
[1759855208805,15.59158944,224.48,224.45,32.6]
[1759855209008,4.45473984,224.48,224.44,34.72]
[1759855209188,15.59158944,224.48,224.45,32.6]
[1759855210396,0.66,224.47,224.46,32.6]
[1759855210596,8.163967,224.47,224.44,34.72]
[1759855210787,0.66,224.46,224.45,32.6]
[1759855211103,25.25414458,224.51,224.45,33.32]
[1759855211311,25.91414458,224.51,224.45,32.6]
[1759855211489,3.04902871,224.46,224.44,34.72]
[1759855211687,0.66,224.46,224.45,32.6]
[1759855212095,3.04902871,224.47,224.45,32.6]
[1759855212595,8.16416548,224.46,224.45,32.6]
[1759855213212,5.11513677,224.46,224.45,32.6]
[1759855213507,8.16416548,224.46,224.45,32.6]
[1759855214014,5.11513677,224.46,224.45,32.6]
[1759855214210,8.16416548,224.46,224.45,32.6]
[1759855215117,7.07121683,224.46,224.45,32.6]
[1759855216003,6.41121683,224.46,224.45,32.6]
[1759855216210,4.45513677,224.46,224.45,32.6]
[1759855216410,6.41121683,224.46,224.45,32.6]
[1759855217104,9.72212866,224.46,224.45,32.6]
[1759855218391,20.8,224.42,224.35,0.72]
[1759855218712,1.95608006,224.37,224.36,14.58]
[1759855218895,1.95608006,224.39,224.36,0.72]
[1759855219095,1.95608006,224.39,224.37,32.6]
[1759855219588,1.95608006,224.38,224.37,32.6]
[1759855219788,6.41280525,224.38,224.37,32.6]
[1759855220420,4.4561294,224.41,224.37,33.32]
[1759855220712,4.4561294,224.41,224.38,0.72]
[1759855221108,1.95608006,224.45,224.38,0.72]
[1759855221109,4.45543186,224.45,224.38,0.72]
[1759855221804,11.13667693,224.49,224.39,4.45652658]
[1759855222002,3.31225934,224.48,224.4,0.72]
[1759855222205,11.13667693,224.49,224.41,32.6]
[1759855222521,11.13667693,224.49,224.42,0.72]
[1759855223318,11.13667693,224.49,224.42,5.17591729]
[1759855223625,11.13667693,224.49,224.43,0.72]
[1759855224920,1.95608006,224.48,224.34,11.14365217]
[1759855225121,1.95608006,224.48,224.4,0.72]
[1759855225422,15.59228403,224.47,224.4,0.72]
[1759855225621,1.95608006,224.46,224.4,0.72]
[1759855225797,1.95608006,224.45,224.41,32.6]
[1759855226001,2.61608006,224.45,224.38,0.72]
[1759855226337,2.61608006,224.45,224.42,32.6]
[1759855226500,6.41161383,224.44,224.42,32.6]
[1759855226820,2.61608006,224.43,224.35,0.7]
[1759855227023,2.61608006,224.43,224.36,32.6]
[1759855227321,4.81753543,224.42,224.36,32.6]
[1759855227511,4.81753543,224.42,224.37,32.6]
[1759855228123,4.81753543,224.43,224.38,0.7]
[1759855228620,4.45593084,224.42,224.39,0.7]
[1759855228831,4.45593084,224.42,224.37,32.6]
[1759855229010,4.81753543,224.52,224.4,0.7]
[1759855229198,4.81753543,224.52,224.41,32.6]
[1759855229404,8.13089593,224.51,224.42,0.7]
[1759855229705,0.66,224.52,224.43,32.6]
[1759855229706,4.81753543,224.46,224.43,32.6]
[1759855230010,0.66,224.46,224.44,32.6]
[1759855230207,0.66,224.46,224.45,32.6]
[1759855230406,0.66,224.46,224.38,0.7]
[1759855230704,15.59367341,224.45,224.38,0.7]
[1759855230907,15.59367341,224.45,224.39,32.6]
[1759855231219,20.41120884,224.45,224.4,32.6]
[1759855231416,21.07120884,224.45,224.4,32.6]
[1759855232322,0.66,224.44,224.4,32.6]
[1759855232724,15.59506303,224.43,224.41,32.6]
[1759855233898,15.59506303,224.43,224.38,0.7]
[1759855234102,15.59506303,224.43,224.39,32.6]
[1759855234614,15.59506303,224.43,224.39,33.3]
[1759855235114,11.13933074,224.43,224.39,33.3]
[1759855236204,11.13933074,224.43,224.36,0.7]
[1759855236420,11.13933074,224.43,224.37,32.6]
[1759855236638,11.13933074,224.43,224.38,0.7]
[1759855237142,11.79933074,224.43,224.39,32.6]
[1759855237437,11.79933074,224.43,224.36,0.7]
[1759855237613,11.79933074,224.43,224.4,32.6]
[1759855237804,0.66,224.42,224.4,32.6]
[1759855238208,15.59506303,224.43,224.4,32.6]
[1759855238515,4.45573229,224.43,224.41,0.7]